fUST/lending_fUST_20240906
["ID","MTS","AMOUNT","RATE_DAILY","PERIOD"]
[337324635,1725603048353,-500.0,0.00020323,2]
[337324636,1725603048365,-500.0,0.00020323,2]
[337324637,1725603048375,-500.0,0.00020323,2]
[337324638,1725603048385,-1367.49,0.00020323,2]
[337324639,1725603048396,-443.97776487,0.00020323,2]
[337324640,1725603048406,-509.0242618,0.00020323,2]
[337324641,1725603048416,-500.0,0.00020323,2]
[337324642,1725603048425,-500.0,0.00020323,2]
[337324643,1725603048435,-507.81531699,0.00020323,2]
[337324644,1725603048445,-500.0,0.00020323,2]
[337324645,1725603048455,-510.19931738,0.00020323,2]
[337324646,1725603048464,-151.0,0.00020343,2]
[337324647,1725603048474,-500.0,0.00020343,2]
[337324648,1725603048483,-500.0,0.00020343,2]
[337324649,1725603048492,-263.11121515,0.00020343,2]
[337324650,1725603048503,-500.0,0.00020343,2]
[337324651,1725603048513,-500.0,0.00020343,2]
[337324652,1725603048523,-500.0,0.00020343,2]
[337324653,1725603048533,-740.53,0.00020343,2]
[337324654,1725603048543,-500.0,0.00020343,2]
[337324655,1725603048552,-500.0,0.00020343,2]
[337324656,1725603048564,-1539.53,0.00020343,2]
[337324657,1725603048574,-500.0,0.00020343,2]
[337324658,1725603048584,-754.9,0.00020343,2]
[337324659,1725603048593,-500.0,0.00020343,2]
[337324660,1725603048603,-733.87,0.00020343,2]
[337324661,1725603048613,-586.56,0.00020343,2]
[337324662,1725603048623,-598.53975091,0.00020343,2]
[337324663,1725603048633,-500.0,0.00020343,2]
[337324664,1725603048642,-500.0,0.00020343,2]
[337324665,1725603048652,-500.0,0.00020343,2]
[337324666,1725603048662,-1561.89,0.00020343,2]
[337324667,1725603048672,-500.0,0.00020343,2]
[337324668,1725603048682,-500.0,0.00020343,2]
[337324669,1725603048692,-500.0,0.00020343,2]
[337324670,1725603048702,-526.42,0.00020343,2]
[337324671,1725603048712,-500.0,0.00020343,2]
[337324672,1725603048722,-1855.18,0.00020343,2]
[337324673,1725603048731,-500.0,0.00020343,2]
[337324674,1725603048741,-500.0,0.00020343,2]
[337324675,1725603048751,-500.0,0.00020343,2]
[337324676,1725603048761,-618.21,0.00020343,2]
[337324677,1725603048771,-500.0,0.00020343,2]
[337324678,1725603048781,-1058.34,0.00020343,2]
[337324679,1725603048791,-500.0,0.00020343,2]
[337324680,1725603048800,-500.0,0.00020343,2]
[337324681,1725603048810,-500.0,0.00020343,2]
[337324682,1725603048819,-500.0,0.00020343,2]
[337324683,1725603048829,-500.0,0.00020343,2]
[337324684,1725603048838,-500.0,0.00020343,2]
[337324685,1725603048848,-500.0,0.00020343,2]
[337324686,1725603048858,-568.98,0.00020343,2]
[337324687,1725603048868,-500.0,0.00020343,2]
[337324688,1725603048877,-500.0,0.00020343,2]
[337324689,1725603048887,-513.39,0.00020343,2]
[337324690,1725603048897,-383.9212287,0.00020343,2]
[337324691,1725603048906,-1225.33,0.00020343,2]
[337324692,1725603048916,-506.47,0.00020343,2]
[337324693,1725603048925,-500.0,0.00020343,2]
[337324694,1725603048935,-500.0,0.00020343,2]
[337324695,1725603048945,-603.34,0.00020343,2]
[337324696,1725603048955,-1308.07,0.00020343,2]
[337324697,1725603048965,-753.73,0.00020343,2]
[337324698,1725603048974,-903.75,0.00020343,2]
[337324699,1725603048983,-500.0,0.00020343,2]
[337324700,1725603048993,-500.0,0.00020343,2]
[337324701,1725603049003,-500.0,0.00020343,2]
[337324702,1725603049013,-500.0,0.00020343,2]
[337324703,1725603049022,-2360.95,0.00020343,2]
[337324704,1725603049032,-500.0,0.00020343,2]
[337324705,1725603049042,-500.0,0.00020344,2]
[337324706,1725603049051,-500.0,0.00020344,2]
[337324707,1725603049061,-500.0,0.00020344,2]
[337324708,1725603049071,-502.34395692,0.00020344,2]
[337324709,1725603049080,-500.0,0.00020344,2]
[337324710,1725603049091,-500.0,0.00020344,2]
[337324711,1725603049100,-504.12005666,0.00020344,2]
[337324712,1725603049109,-500.0,0.00020344,2]
[337324713,1725603049119,-500.0,0.00020344,2]
[337324714,1725603049129,-500.0,0.00020344,2]
[337324715,1725603049138,-483.30350005,0.00020344,2]
[337324716,1725603049148,-505.02543737,0.00020344,2]
[337324717,1725603049157,-596.27,0.00020344,2]
[337324718,1725603049167,-500.0,0.00020344,2]
[337324719,1725603049177,-227.40913823,0.00020344,2]
[337324720,1725603049186,-521.79988734,0.00020344,2]
[337324721,1725603049195,-500.0,0.00020344,2]
[337324722,1725603049204,-500.0,0.00020344,2]
[337324723,1725603049214,-500.0,0.00020344,2]
[337324724,1725603049223,-500.0,0.00020344,2]
[337324725,1725603049233,-500.0,0.00020344,2]
[337324726,1725603049244,-500.0,0.00020344,2]
[337324727,1725603049253,-500.0,0.00020344,2]
[337324728,1725603049263,-256.49905206,0.00020344,2]
[337324729,1725603049273,-500.0,0.00020344,2]
[337324730,1725603049283,-500.0,0.00020344,2]
[337324731,1725603049293,-500.0,0.00020344,2]
[337324732,1725603049302,-748.74,0.00020344,2]
[337324733,1725603049312,-500.0,0.00020344,2]
[337324734,1725603049322,-500.0,0.00020344,2]
[337324735,1725603049332,-1345.06,0.00020344,2]
[337324736,1725603049342,-660.05,0.00020344,2]
[337324737,1725603049351,-500.0,0.00020344,2]
[337324738,1725603049360,-500.0,0.00020344,2]
[337324739,1725603049371,-500.0,0.00020344,2]
[337324740,1725603049381,-454.10024338,0.00020344,2]
[337324741,1725603049393,-500.0,0.00020344,2]
[337324742,1725603049403,-723.36,0.00020344,2]
[337324743,1725603049413,-555.79423727,0.00020344,2]
[337324744,1725603049422,-500.0,0.00020344,2]
[337324745,1725603049433,-515.67857954,0.00020344,2]
[337324746,1725603049442,-500.0,0.00020344,2]
[337324747,1725603049452,-500.0,0.00020344,2]
[337324748,1725603049461,-500.0,0.00020344,2]
[337324749,1725603049473,-369.20947153,0.00020344,2]
[337324750,1725603049482,-500.0,0.00020344,2]
[337324751,1725603049491,-652.31,0.00020344,2]
[337324752,1725603049501,-500.0,0.00020344,2]
[337324753,1725603049511,-500.0,0.00020344,2]
[337324754,1725603049521,-500.0,0.00020344,2]
[337324755,1725603049530,-500.0,0.00020344,2]
[337324756,1725603049539,-611.94660418,0.00020344,2]
[337324757,1725603049549,-500.0,0.00020344,2]
[337324758,1725603049559,-500.0,0.00020344,2]
[337324759,1725603049568,-500.0,0.00020344,2]
[337324760,1725603049579,-500.0,0.00020344,2]
[337324761,1725603049588,-500.0,0.00020344,2]
[337324762,1725603049597,-500.0,0.00020344,2]
[337324763,1725603049606,-592.73,0.00020344,2]
[337324764,1725603049615,-500.0,0.00020344,2]
[337324765,1725603049626,-500.0,0.00020344,2]
[337324766,1725603049635,-500.0,0.00020344,2]
[337324767,1725603049644,-569.25495652,0.00020344,2]
[337324768,1725603049654,-1822.88,0.00020344,2]
[337324769,1725603049663,-500.0,0.00020344,2]
[337324770,1725603049672,-500.0,0.00020344,2]
[337324771,1725603049682,-500.0,0.00020344,2]
[337324772,1725603049691,-500.0,0.00020344,2]
[337324773,1725603049700,-500.0,0.00020344,2]
[337324774,1725603049709,-500.0,0.00020344,2]
[337324775,1725603049718,-500.0,0.00020344,2]
[337324776,1725603049728,-569.46,0.00020344,2]
[337324777,1725603049737,-500.0,0.00020344,2]
[337324778,1725603049747,-500.0,0.00020344,2]
[337324779,1725603049756,-500.0,0.00020344,2]
[337324780,1725603049765,-500.0,0.00020344,2]
[337324781,1725603049775,-500.0,0.00020344,2]
[337324782,1725603049784,-500.0,0.00020344,2]
[337324783,1725603049794,-500.0,0.00020344,2]
[337324784,1725603049803,-500.0,0.00020344,2]
[337324785,1725603049812,-587.82981552,0.00020344,2]
[337324786,1725603049821,-356.88359095,0.00020344,2]
[337324787,1725603049830,-500.0,0.00020344,2]
[337324788,1725603049839,-500.0,0.00020344,2]
[337324789,1725603049848,-781.87,0.00020344,2]
[337324790,1725603049857,-500.0,0.00020344,2]
[337324791,1725603049866,-500.0,0.00020344,2]
[337324792,1725603049875,-500.0,0.00020344,2]
[337324793,1725603049885,-500.0,0.00020344,2]
[337324794,1725603049894,-500.0,0.00020344,2]
[337324795,1725603049903,-500.0,0.00020344,2]
[337324796,1725603049912,-506.49836039,0.00020344,2]
[337324797,1725603049922,-500.0,0.00020344,2]
[337324798,1725603049931,-500.0,0.00020344,2]
[337324799,1725603049941,-500.0,0.00020344,2]
[337324800,1725603049950,-151.0,0.00020344,2]
[337324801,1725603049959,-249.499381,0.00020344,2]
[337324802,1725603049968,-220.505236,0.00020344,2]
[337324803,1725603049978,-249.499381,0.00020344,2]
[337324804,1725603049987,-151.0,0.00020344,2]
[337324805,1725603049996,-220.505236,0.00020344,2]
[337324806,1725603050006,-151.0,0.00020344,2]
[337324807,1725603050015,-151.0,0.00020344,2]
[337324808,1725603050024,-151.0,0.00020344,2]
[337324809,1725603050035,-151.0,0.00020344,2]
[337324810,1725603050046,-151.0,0.00020344,2]
[337324811,1725603050056,-190.155027,0.00020344,2]
[337324812,1725603050068,-190.155027,0.00020344,2]
[337324813,1725603050079,-155.877942,0.00020364,2]
[337324814,1725603050088,-452.43290024,0.00020364,2]
[337324815,1725603050099,-500.0,0.00020364,2]
[337324816,1725603050109,-509.67789838,0.00020364,2]
[337324817,1725603050121,-500.0,0.00020364,2]
[337324818,1725603050131,-500.0,0.00020364,2]
[337324819,1725603050140,-500.0,0.00020364,2]
[337324820,1725603050150,-500.0,0.00020364,2]
[337324821,1725603050159,-160.22557755,0.00020373,2]
[337324822,1725603050169,-500.0,0.00020373,2]
[337324823,1725603050178,-800.628816,0.00020545,2]
[337324824,1725603050187,-3491.67262316,0.00020547,2]
[337324825,1725603050196,-500.0,0.00020573,2]
[337324826,1725603050206,-500.0,0.00020573,2]
[337324827,1725603050215,-1480.68,0.00020577,2]
[337324828,1725603050225,-5593.57,0.00020577,2]
[337324829,1725603050235,-1166.64,0.00020577,2]
[337324830,1725603050244,-500.0,0.00020577,2]
[337324831,1725603050253,-500.0,0.00020577,2]
[337324832,1725603050262,-637.89,0.00020577,2]
[337324833,1725603050271,-1010.8,0.00020577,2]
[337324834,1725603050279,-1971.42,0.00020577,2]
[337324835,1725603050288,-556.01,0.00020586,2]
[337324836,1725603050297,-7934.81,0.00020586,2]
[337324837,1725603050307,-592.95,0.00020586,2]
[337324838,1725603050316,-500.0,0.00020586,2]
[337324839,1725603050325,-1374.45,0.00020586,2]
[337324840,1725603050334,-777.41,0.00020586,2]
[337324841,1725603050343,-1670.59,0.00020586,2]
[337324842,1725603050352,-878.94,0.00020587,2]
[337324843,1725603050361,-500.0,0.00020587,2]
[337324844,1725603050503,-881.97,0.00020587,2]
[337324845,1725603050512,-1540.13,0.00020587,2]
[337324846,1725603050522,-938.2,0.00020587,2]
[337324847,1725603050531,-1349.8,0.00020587,2]
[337324848,1725603050541,-500.0,0.00020587,2]
[337324849,1725603050550,-500.0,0.00020587,2]
[337324850,1725603050559,-24775.49,0.00020587,2]
[337324851,1725603050568,-905.47,0.00020587,2]
[337324852,1725603050578,-1153.75,0.00020587,2]
[337324853,1725603050587,-544.65891532,0.00020587,2]
[337324854,1725603050596,-1020.9,0.00020587,2]
[337324855,1725603050605,-1242.45,0.00020587,2]
[337324856,1725603050614,-500.0,0.00020587,2]
[337324857,1725603050623,-677.65,0.00020587,2]
[337324858,1725603050633,-2039.31,0.00020587,2]
[337324859,1725603050643,-500.0,0.00020587,2]
[337324860,1725603050652,-2650.81,0.00020587,2]
[337324861,1725603050661,-500.0,0.00020587,2]
[337324862,1725603050672,-500.0,0.00020587,2]
[337324863,1725603050681,-500.0,0.00020587,2]
[337324864,1725603050690,-500.0,0.00020587,2]
[337324865,1725603050699,-500.0,0.00020587,2]
[337324866,1725603050708,-500.0,0.00020587,2]
[337324867,1725603050717,-1129.76,0.00020587,2]
[337324868,1725603050726,-1211.83,0.00020587,2]
[337324869,1725603050735,-1277.93,0.00020587,2]
[337324870,1725603050745,-699.45,0.00020587,2]
[337324871,1725603050754,-500.0,0.00020587,2]
[337324872,1725603050763,-500.0,0.00020587,2]
[337324873,1725603050772,-500.0,0.00020587,2]
[337324874,1725603050781,-500.0,0.00020587,2]
[337324875,1725603050790,-500.0,0.00020587,2]
[337324876,1725603050799,-500.0,0.00020597,2]
[337324877,1725603050808,-500.0,0.00020597,2]
[337324878,1725603050817,-500.0,0.00020597,2]
[337324879,1725603050827,-500.0,0.00020597,2]
[337324880,1725603050836,-500.0,0.00020597,2]
[337324881,1725603050845,-500.0,0.00020597,2]
[337324882,1725603050854,-500.0,0.00020597,2]
[337324883,1725603050863,-500.0,0.00020597,2]
[337324884,1725603050872,-500.0,0.00020597,2]
[337324885,1725603050881,-500.0,0.00020597,2]
[337324886,1725603050890,-500.0,0.00020597,2]
[337324887,1725603050900,-500.0,0.00020597,2]
[337324888,1725603050909,-807.11,0.00020597,2]
[337324889,1725603050918,-500.0,0.00020597,2]
[337324890,1725603050927,-542.2,0.00020597,2]
[337324891,1725603050936,-505.45421856,0.00020597,2]
[337324892,1725603050945,-500.0,0.00020597,2]
[337324893,1725603050954,-626.22,0.00020597,2]
[337324894,1725603050963,-500.0,0.00020597,2]
[337324895,1725603050972,-500.0,0.00020597,2]
[337324896,1725603050981,-500.0,0.00020597,2]
[337324897,1725603050990,-500.0,0.00020597,2]
[337324898,1725603050999,-500.0,0.00020597,2]
[337324899,1725603051008,-200.0,0.00020597,2]
[337324900,1725603051017,-500.0,0.00020597,2]
[337324901,1725603051026,-500.0,0.00020597,2]
[337324902,1725603051035,-634.05,0.00020597,2]
[337324903,1725603051044,-500.0,0.00020597,2]
[337324904,1725603051053,-500.0,0.00020597,2]
[337324905,1725603051062,-500.0,0.00020597,2]
[337324906,1725603051071,-500.0,0.00020597,2]
[337324907,1725603051081,-622.5,0.00020597,2]
[337324908,1725603051090,-500.0,0.00020597,2]
[337324909,1725603051099,-500.0,0.00020597,2]
[337324910,1725603051108,-500.0,0.00020597,2]
[337324911,1725603051117,-903.49,0.00020597,2]
[337324912,1725603051126,-500.0,0.00020597,2]
[337324913,1725603051135,-500.0,0.00020597,2]
[337324914,1725603051145,-500.0,0.00020597,2]
[337324915,1725603051154,-500.0,0.00020597,2]
[337324916,1725603051163,-500.0,0.00020597,2]
[337324917,1725603051172,-500.0,0.00020597,2]
[337324918,1725603051181,-500.0,0.00020597,2]
[337324919,1725603051191,-500.0,0.00020597,2]
[337324920,1725603051200,-500.0,0.00020597,2]
[337324921,1725603051209,-500.0,0.00020597,2]
[337324922,1725603051218,-529.52883632,0.00020597,2]
[337324923,1725603051227,-500.0,0.00020597,2]
[337324924,1725603051237,-500.0,0.00020597,2]
[337324925,1725603051246,-500.0,0.00020597,2]
[337324926,1725603051255,-500.0,0.00020597,2]
[337324927,1725603051265,-582.54,0.00020597,2]
[337324928,1725603051275,-500.0,0.00020597,2]
[337324929,1725603051284,-500.0,0.00020597,2]
[337324930,1725603051294,-500.0,0.00020597,2]
[337324931,1725603051304,-516.0161593,0.00020597,2]
[337324932,1725603051313,-500.0,0.00020597,2]
[337324933,1725603051323,-500.0,0.00020597,2]
[337324934,1725603051332,-500.0,0.00020597,2]
[337324935,1725603051343,-500.0,0.00020597,2]
[337324936,1725603051353,-752.04,0.00020597,2]
[337324937,1725603051363,-500.0,0.00020597,2]
[337324938,1725603051372,-188.73129813,0.00020597,2]
[337324939,1725603051383,-500.0,0.00020597,2]
[337324940,1725603051396,-500.0,0.00020597,2]
[337324941,1725603051406,-500.0,0.00020597,2]
[337324942,1725603051415,-500.0,0.00020597,2]
[337324943,1725603051425,-500.0,0.00020597,2]
[337324944,1725603051434,-500.0,0.00020597,2]
[337324945,1725603051443,-500.0,0.00020597,2]
[337324946,1725603051453,-500.0,0.00020597,2]
[337324947,1725603051462,-500.0,0.00020597,2]
[337324948,1725603051472,-500.0,0.00020597,2]
[337324949,1725603051482,-839.29,0.00020597,2]
[337324950,1725603051492,-500.0,0.00020597,2]
[337324951,1725603051501,-500.0,0.00020597,2]
[337324952,1725603051511,-500.0,0.00020597,2]
[337324953,1725603051522,-500.0,0.00020597,2]
[337324954,1725603051532,-500.0,0.00020597,2]
[337324955,1725603051542,-500.0,0.00020597,2]
[337324956,1725603051552,-500.85881607,0.00020597,2]
[337324957,1725603051561,-500.0,0.00020597,2]
[337324958,1725603051571,-500.0,0.00020597,2]
[337324959,1725603051580,-500.0,0.00020597,2]
[337324960,1725603051590,-500.0,0.00020597,2]
[337324961,1725603051600,-500.0,0.00020597,2]
[337324962,1725603051609,-500.0,0.00020597,2]
[337324963,1725603051619,-500.0,0.00020597,2]
[337324964,1725603051629,-500.0,0.00020597,2]
[337324965,1725603051639,-500.0,0.00020597,2]
[337324966,1725603051648,-1430.21,0.00020597,2]
[337324967,1725603051658,-195.90199049,0.00020597,2]
[337324968,1725603051668,-500.0,0.00020597,2]
[337324969,1725603051679,-500.0,0.00020597,2]
[337324970,1725603051689,-500.0,0.00020597,2]
[337324971,1725603051699,-1109.83,0.00020597,2]
[337324972,1725603051708,-500.0,0.00020597,2]
[337324973,1725603051717,-500.0,0.00020597,2]
[337324974,1725603051728,-500.0,0.00020597,2]
[337324975,1725603051737,-210.53114992,0.00020597,2]
[337324976,1725603051747,-500.0,0.00020597,2]
[337324977,1725603051756,-736.06,0.00020597,2]
[337324978,1725603051765,-500.0,0.00020597,2]
[337324979,1725603051775,-512.43267611,0.00020597,2]
[337324980,1725603051785,-537.01,0.00020597,2]
[337324981,1725603051795,-500.0,0.00020597,2]
[337324982,1725603051804,-500.0,0.00020597,2]
[337324983,1725603051814,-500.0,0.00020597,2]
[337324984,1725603051824,-356.97419144,0.00020597,2]
[337324985,1725603051833,-1628.82,0.00020597,2]
[337324986,1725603051843,-964.66,0.00020597,2]
[337324987,1725603051852,-500.0,0.00020597,2]
[337324988,1725603051862,-500.0,0.00020597,2]
[337324989,1725603051872,-500.0,0.00020597,2]
[337324990,1725603051882,-500.0,0.00020597,2]
[337324991,1725603051892,-500.0,0.00020597,2]
[337324992,1725603051901,-475.74077969,0.00020597,2]
[337324993,1725603051911,-346.04790421,0.00020597,2]
[337324994,1725603051921,-500.0,0.00020597,2]
[337324995,1725603051931,-500.0,0.00020597,2]
[337324996,1725603051940,-500.0,0.00020597,2]
[337324997,1725603051950,-500.0,0.00020597,2]
[337324998,1725603051959,-500.0,0.00020597,2]
[337324999,1725603051968,-500.0,0.00020597,2]
[337325000,1725603051977,-500.0,0.00020597,2]
[337325001,1725603051986,-1047.98,0.00020597,2]
[337325002,1725603051996,-500.0,0.00020597,2]
[337325003,1725603052006,-500.0,0.00020597,2]
[337325004,1725603052017,-500.0,0.00020597,2]
[337325005,1725603052026,-500.0,0.00020597,2]
[337325006,1725603052035,-500.0,0.00020597,2]
[337325007,1725603052045,-7546.56,0.00020597,2]
[337325008,1725603052057,-500.0,0.00020597,2]
[337325009,1725603052067,-500.0,0.00020597,2]
[337325010,1725603052078,-1350.37,0.00020597,2]
[337325011,1725603052089,-340.03205591,0.00020597,2]
[337325012,1725603052100,-1291.8,0.00020597,2]
[337325013,1725603052112,-500.0,0.00020597,2]
[337325014,1725603052121,-1424.74,0.00020597,2]
[337325015,1725603052131,-500.0,0.00020597,2]
[337325016,1725603052141,-512.41377475,0.00020597,2]
[337325017,1725603052151,-1341.57,0.00020597,2]
[337325018,1725603052162,-1854.7,0.00020597,2]
[337325019,1725603052173,-500.0,0.00020597,2]
[337325020,1725603052182,-500.0,0.00020597,2]
[337325021,1725603052194,-500.0,0.00020597,2]
[337325022,1725603052204,-500.0,0.00020597,2]
[337325023,1725603052214,-500.0,0.00020597,2]
[337325024,1725603052224,-500.0,0.00020597,2]
[337325025,1725603052235,-403.37758823,0.00020597,2]
[337325026,1725603052245,-500.0,0.00020597,2]
[337325027,1725603052255,-500.0,0.00020597,2]
[337325028,1725603052265,-514.74506261,0.00020597,2]
[337325029,1725603052277,-500.0,0.00020597,2]
[337325030,1725603052287,-872.4,0.00020597,2]
[337325031,1725603052297,-500.0,0.00020597,2]
[337325032,1725603052309,-573.8,0.00020597,2]
[337325033,1725603052319,-500.0,0.00020597,2]
[337325034,1725603052330,-500.0,0.00020597,2]
[337325035,1725603052339,-500.0,0.00020597,2]
[337325036,1725603052349,-500.0,0.00020597,2]
[337325037,1725603052359,-547.5,0.00020597,2]
[337325038,1725603052369,-508.26635974,0.00020597,2]
[337325039,1725603052380,-555.33,0.00020597,2]
[337325040,1725603052390,-500.0,0.00020597,2]
[337325041,1725603052402,-500.0,0.00020597,2]
[337325042,1725603052412,-500.0,0.00020597,2]
[337325043,1725603052422,-606.52,0.00020597,2]
[337325044,1725603052433,-500.0,0.00020597,2]
[337325045,1725603052444,-500.0,0.00020597,2]
[337325046,1725603052453,-500.0,0.00020597,2]
[337325047,1725603052462,-500.0,0.00020597,2]
[337325048,1725603052473,-535.48,0.00020597,2]
[337325049,1725603052482,-500.0,0.00020597,2]
[337325050,1725603052492,-504.67213129,0.00020597,2]
[337325051,1725603052501,-500.0,0.00020597,2]
[337325052,1725603052510,-500.0,0.00020597,2]
[337325053,1725603052519,-500.0,0.00020597,2]
[337325054,1725603052528,-671.91,0.00020597,2]
[337325055,1725603052538,-504.60298259,0.00020597,2]
[337325056,1725603052548,-522.94332566,0.00020597,2]
[337325057,1725603052557,-500.0,0.00020597,2]
[337325058,1725603052568,-507.29844022,0.00020597,2]
[337325059,1725603052579,-500.0,0.00020597,2]
[337325060,1725603052589,-500.0,0.00020597,2]
[337325061,1725603052600,-500.0,0.00020597,2]
[337325062,1725603052611,-500.0,0.00020597,2]
[337325063,1725603052621,-500.0,0.00020597,2]
[337325064,1725603052633,-500.0,0.00020597,2]
[337325065,1725603052643,-654.5,0.00020597,2]
[337325066,1725603052652,-500.0,0.00020597,2]
[337325067,1725603052663,-500.0,0.00020597,2]
[337325068,1725603052673,-500.0,0.00020597,2]
[337325069,1725603052685,-500.0,0.00020597,2]
[337325070,1725603052696,-500.0,0.00020597,2]
[337325071,1725603052706,-500.0,0.00020597,2]
[337325072,1725603052716,-2392.4,0.00020597,2]
[337325073,1725603052726,-500.0,0.00020597,2]
[337325074,1725603052737,-500.0,0.00020597,2]
[337325075,1725603052747,-500.0,0.00020597,2]
[337325076,1725603052757,-506.36545872,0.00020597,2]
[337325077,1725603052767,-116073.84,0.00020597,2]
[337325078,1725603052778,-500.0,0.00020597,2]
[337325079,1725603052787,-500.0,0.00020597,2]
[337325080,1725603052798,-500.0,0.00020597,2]
[337325081,1725603052808,-500.0,0.00020597,2]
[337325082,1725603052817,-500.0,0.00020597,2]
[337325083,1725603052826,-1403.48,0.00020597,2]
[337325084,1725603052835,-216.1695554,0.00020597,2]
[337325085,1725603052844,-500.0,0.00020597,2]
[337325086,1725603052854,-500.0,0.00020597,2]
[337325087,1725603052863,-772.05,0.00020597,2]
[337325088,1725603052871,-500.0,0.00020597,2]
[337325089,1725603052880,-500.0,0.00020597,2]
[337325090,1725603052889,-500.0,0.00020597,2]
[337325091,1725603052898,-500.0,0.00020597,2]
[337325092,1725603052908,-500.0,0.00020597,2]
[337325093,1725603052917,-500.0,0.00020597,2]
[337325094,1725603052926,-500.0,0.00020597,2]
[337325095,1725603052935,-500.0,0.00020597,2]
[337325096,1725603052944,-500.0,0.00020597,2]
[337325097,1725603052953,-1367.49,0.00020597,2]
[337325098,1725603052963,-500.0,0.00020597,2]
[337325099,1725603052972,-500.0,0.00020597,2]
[337325100,1725603052981,-500.0,0.00020597,2]
[337325101,1725603052991,-153.151854,0.00020607,2]
[337325102,1725603052999,-151.0,0.00020607,2]
[337325103,1725603053009,-151.0,0.00020607,2]
[337325104,1725603053018,-342.465442,0.00020607,2]
[337325105,1725603053027,-342.465442,0.00020607,2]
[337325106,1725603053037,-222.959353,0.00020607,2]
[337325107,1725603053046,-152.999856,0.00020607,2]
[337325108,1725603053056,-222.959353,0.00020607,2]
[337325109,1725603053183,-151.0,0.00020607,2]
[337325110,1725603053194,-151.0,0.00020607,2]
[337325111,1725603053203,-151.0,0.00020607,2]
[337325112,1725603053213,-151.0,0.00020607,2]
[337325113,1725603053223,-172.116408,0.00020607,2]
[337325114,1725603053234,-151.0,0.00020607,2]
[337325115,1725603053244,-172.116408,0.00020607,2]
[337325116,1725603053254,-3018.044888,0.00020607,2]
[337325117,1725603053263,-3018.044888,0.00020607,2]
[337325118,1725603053273,-187.877231,0.00020607,2]
[337325119,1725603053281,-187.877231,0.00020607,2]
[337325120,1725603053290,-151.0,0.00020616,2]
[337325121,1725603053299,-151.0,0.00020616,2]
[337325122,1725603053309,-151.0,0.00020616,2]
[337325123,1725603053318,-185.908607,0.00020616,2]
[337325124,1725603053327,-151.0,0.00020616,2]
[337325125,1725603053337,-151.0,0.00020616,2]
[337325126,1725603053346,-151.0,0.00020616,2]
[337325127,1725603053356,-151.0,0.00020616,2]
[337325128,1725603053365,-151.0,0.00020616,2]
[337325129,1725603053374,-151.0,0.00020616,2]
[337325130,1725603053383,-190.155027,0.00020616,2]
[337325131,1725603053393,-256.632414,0.00020616,2]
[337325132,1725603053406,-256.632414,0.00020616,2]
[337325133,1725603053415,-190.155027,0.00020616,2]
[337325134,1725603053425,-151.0,0.00020616,2]